[Event "Early-Titled-Tuesday-Blitz-February-20-2024"]
[Site "Chess.com"]
[Date "2024.02.20"]
[Round "6"]
[White "Lady_Nika"]
[Black "artin10862"]
[Result "0-1"]
[WhiteElo "2569"]
[BlackElo "2903"]
[TimeControl "180+1"]
[EndTime "9:10:23 PST"]
[Termination "artin10862 won by checkmate"]

1. d4 {[%clk 0:03:00.9]} 1... d5 {[%clk 0:02:58]} 2. e3 {[%clk 0:03:01.8]} 2...
Nf6 {[%clk 0:02:53]} 3. f4 {[%clk 0:03:01.2]} 3... Bf5 {[%clk 0:02:48.4]} 4. Nf3
{[%clk 0:03:02.1]} 4... e6 {[%clk 0:02:48.1]} 5. Bd3 {[%clk 0:03:02.2]} 5...
Bxd3 {[%clk 0:02:47.9]} 6. Qxd3 {[%clk 0:03:03.1]} 6... c5 {[%clk 0:02:47.5]} 7.
c3 {[%clk 0:03:01.9]} 7... Nc6 {[%clk 0:02:47.5]} 8. O-O {[%clk 0:03:01.8]} 8...
Be7 {[%clk 0:02:47.7]} 9. Nbd2 {[%clk 0:03:02]} 9... O-O {[%clk 0:02:47.5]} 10.
Ne5 {[%clk 0:03:02.3]} 10... Qb6 {[%clk 0:02:46.9]} 11. Rf3 {[%clk 0:02:57.8]}
11... a5 {[%clk 0:02:44.4]} 12. Rh3 {[%clk 0:02:57.8]} 12... Qa6 {[%clk
0:02:44.7]} 13. c4 {[%clk 0:02:41.6]} 13... cxd4 {[%clk 0:02:40]} 14. Nd7 {[%clk
0:02:32.3]} 14... Rfd8 {[%clk 0:02:17.1]} 15. Nxf6+ {[%clk 0:02:30.9]} 15...
Bxf6 {[%clk 0:02:18]} 16. Qxh7+ {[%clk 0:02:26.7]} 16... Kf8 {[%clk 0:02:18.1]}
17. cxd5 {[%clk 0:02:24.7]} 17... dxe3 {[%clk 0:01:59.9]} 18. Ne4 {[%clk
0:02:10.1]} 18... e2 {[%clk 0:01:55.3]} 19. Be3 {[%clk 0:02:06.8]} 19... Rxd5
{[%clk 0:01:54.8]} 20. Bc5+ {[%clk 0:01:43.7]} 20... Rxc5 {[%clk 0:01:49.6]} 21.
Nxc5 {[%clk 0:01:41.9]} 21... Bd4+ {[%clk 0:01:49.6]} 22. Kh1 {[%clk 0:01:41.8]}
22... Bxc5 {[%clk 0:01:50.5]} 23. Qh8+ {[%clk 0:01:41.9]} 23... Ke7 {[%clk
0:01:50.3]} 24. Qxg7 {[%clk 0:01:42.1]} 24... Bd4 {[%clk 0:01:44.5]} 25. Qg5+
{[%clk 0:01:40]} 25... Kd7 {[%clk 0:01:38.5]} 26. Qh5 {[%clk 0:01:34.7]} 26...
Ke7 {[%clk 0:01:27.4]} 27. Re1 {[%clk 0:01:33.8]} 27... Rh8 {[%clk 0:01:25.1]}
28. Qg5+ {[%clk 0:01:33.5]} 28... Bf6 {[%clk 0:01:24.7]} 29. Qc5+ {[%clk
0:01:33.3]} 29... Ke8 {[%clk 0:01:25]} 30. Rb3 {[%clk 0:01:05]} 30... Bd4 {[%clk
0:00:47.9]} 31. Qc2 {[%clk 0:00:59.2]} 31... a4 {[%clk 0:00:38.1]} 32. Rd3
{[%clk 0:00:53.9]} 32... Rh5 {[%clk 0:00:23.8]} 33. Qxe2 {[%clk 0:00:35.6]}
33... Rd5 {[%clk 0:00:22.9]} 34. Qf3 {[%clk 0:00:29.8]} 34... Ne7 {[%clk
0:00:17.5]} 35. f5 {[%clk 0:00:18.8]} 35... Rxf5 {[%clk 0:00:10.6]} 36. Qh3
{[%clk 0:00:19]} 36... Qd6 {[%clk 0:00:04.6]} 37. Qg4 {[%clk 0:00:12.6]} 37...
e5 {[%clk 0:00:04.3]} 38. Rf3 {[%clk 0:00:11.4]} 38... Rxf3 {[%clk 0:00:04.5]}
39. Qxf3 {[%clk 0:00:12.3]} 39... Qd5 {[%clk 0:00:04.9]} 40. Qa3 {[%clk
0:00:11.8]} 40... b5 {[%clk 0:00:04.7]} 41. b3 {[%clk 0:00:10.6]} 41... axb3
{[%clk 0:00:04.4]} 42. axb3 {[%clk 0:00:10.8]} 42... f5 {[%clk 0:00:05.1]} 43.
b4 {[%clk 0:00:10.8]} 43... e4 {[%clk 0:00:04.2]} 44. h3 {[%clk 0:00:11.3]}
44... Qe5 {[%clk 0:00:04.2]} 45. Rd1 {[%clk 0:00:10.8]} 45... e3 {[%clk
0:00:03.6]} 46. Qa8+ {[%clk 0:00:11]} 46... Kf7 {[%clk 0:00:03.8]} 47. Qf3
{[%clk 0:00:10.9]} 47... f4 {[%clk 0:00:04.2]} 48. Rf1 {[%clk 0:00:10.6]} 48...
e2 {[%clk 0:00:02.3]} 49. Qxf4+ {[%clk 0:00:11]} 49... Qxf4 {[%clk 0:00:02.4]}
50. Rxf4+ {[%clk 0:00:11.9]} 50... Kg6 {[%clk 0:00:02.6]} 51. Re4 {[%clk
0:00:12.4]} 51... Nf5 {[%clk 0:00:03.1]} 52. Rxe2 {[%clk 0:00:12.5]} 52... Ng3+
{[%clk 0:00:03.3]} 53. Kh2 {[%clk 0:00:13]} 53... Nxe2 {[%clk 0:00:04.2]} 54. h4
{[%clk 0:00:13]} 54... Kh5 {[%clk 0:00:04.5]} 55. Kh3 {[%clk 0:00:13.1]} 55...
Nf4+ {[%clk 0:00:04.9]} 56. Kg3 {[%clk 0:00:13.6]} 56... Be5 {[%clk 0:00:05.1]}
57. Kf3 {[%clk 0:00:13.1]} 57... Ne6 {[%clk 0:00:05.6]} 58. Ke4 {[%clk
0:00:13.2]} 58... Bc3 {[%clk 0:00:05.6]} 59. Kd5 {[%clk 0:00:13.4]} 59... Nc7+
{[%clk 0:00:06]} 60. Kc6 {[%clk 0:00:13.3]} 60... Bxb4 {[%clk 0:00:06.6]} 61.
Kxc7 {[%clk 0:00:13.6]} 61... Be1 {[%clk 0:00:07.3]} 62. Kd6 {[%clk 0:00:11.5]}
62... b4 {[%clk 0:00:08.2]} 63. Ke5 {[%clk 0:00:11.9]} 63... b3 {[%clk
0:00:09.1]} 64. Kf5 {[%clk 0:00:12.2]} 64... Kxh4 {[%clk 0:00:08.3]} 65. g4
{[%clk 0:00:13.1]} 65... b2 {[%clk 0:00:09.2]} 66. g5 {[%clk 0:00:13.9]} 66...
b1=Q+ {[%clk 0:00:10.1]} 67. Kf6 {[%clk 0:00:14.2]} 67... Bc3+ {[%clk
0:00:09.9]} 68. Kf7 {[%clk 0:00:12.9]} 68... Qf5+ {[%clk 0:00:10.1]} 69. Ke8
{[%clk 0:00:13.8]} 69... Qe6+ {[%clk 0:00:10.1]} 70. Kd8 {[%clk 0:00:12.9]}
70... Ba5# {[%clk 0:00:10]} 0-1

[Event "Early-Titled-Tuesday-Blitz-February-20-2024"]
[Site "Chess.com"]
[Date "2024.02.20"]
[Round "6"]
[White "mbojan"]
[Black "Ali_rastbod"]
[Result "1-0"]
[WhiteElo "2864"]
[BlackElo "2689"]
[TimeControl "180+1"]
[EndTime "9:10:25 PST"]
[Termination "mbojan won on time"]

1. e4 {[%clk 0:03:00.9]} 1... e6 {[%clk 0:02:57.6]} 2. d4 {[%clk 0:03:00.8]}
2... d5 {[%clk 0:02:58.3]} 3. Nc3 {[%clk 0:03:01.2]} 3... Nf6 {[%clk 0:02:58]}
4. e5 {[%clk 0:03:01.3]} 4... Nfd7 {[%clk 0:02:58.2]} 5. f4 {[%clk 0:03:01.8]}
5... c5 {[%clk 0:02:58.9]} 6. Nf3 {[%clk 0:03:02.1]} 6... Nc6 {[%clk 0:02:59.6]}
7. Be3 {[%clk 0:03:02.4]} 7... Be7 {[%clk 0:03:00.3]} 8. Qd2 {[%clk 0:03:02.7]}
8... O-O {[%clk 0:03:01]} 9. dxc5 {[%clk 0:03:03]} 9... Qa5 {[%clk 0:02:59.6]}
10. Bd3 {[%clk 0:02:45.9]} 10... Nxc5 {[%clk 0:02:52.4]} 11. O-O-O {[%clk
0:02:39.9]} 11... Nxd3+ {[%clk 0:02:34.5]} 12. cxd3 {[%clk 0:02:35.3]} 12... Bd7
{[%clk 0:02:00.3]} 13. Kb1 {[%clk 0:02:33.9]} 13... b5 {[%clk 0:01:52.9]} 14.
Nd4 {[%clk 0:02:31.1]} 14... b4 {[%clk 0:01:45.5]} 15. Nce2 {[%clk 0:02:28.6]}
15... Rfc8 {[%clk 0:01:23.7]} 16. Rc1 {[%clk 0:02:28.4]} 16... Qd8 {[%clk
0:01:20.2]} 17. Nxc6 {[%clk 0:02:27.3]} 17... Bxc6 {[%clk 0:01:20.2]} 18. Nd4
{[%clk 0:02:27.9]} 18... Bd7 {[%clk 0:01:20.7]} 19. g4 {[%clk 0:02:25.7]} 19...
f6 {[%clk 0:01:17.6]} 20. exf6 {[%clk 0:02:21.2]} 20... Bxf6 {[%clk 0:01:15]}
21. Qxb4 {[%clk 0:01:47.2]} 21... Rab8 {[%clk 0:01:13.5]} 22. Qd2 {[%clk
0:01:46.8]} 22... Qb6 {[%clk 0:01:02.8]} 23. Rxc8+ {[%clk 0:01:41.1]} 23... Bxc8
{[%clk 0:01:00.6]} 24. Qf2 {[%clk 0:01:29.9]} 24... e5 {[%clk 0:00:56.4]} 25.
fxe5 {[%clk 0:01:27.2]} 25... Bxe5 {[%clk 0:00:57.3]} 26. Rf1 {[%clk 0:01:21.5]}
26... h6 {[%clk 0:00:48.1]} 27. b3 {[%clk 0:01:02.8]} 27... Qg6 {[%clk
0:00:44.7]} 28. Nf5 {[%clk 0:00:53.2]} 28... Kh7 {[%clk 0:00:41.5]} 29. h3
{[%clk 0:00:46.9]} 29... a5 {[%clk 0:00:39.4]} 30. Bd4 {[%clk 0:00:37.8]} 30...
Bxf5 {[%clk 0:00:34.9]} 31. gxf5 {[%clk 0:00:33.5]} 31... Qf6 {[%clk 0:00:34.2]}
32. Bxe5 {[%clk 0:00:31.2]} 32... Qxe5 {[%clk 0:00:35.1]} 33. f6 {[%clk
0:00:31.9]} 33... a4 {[%clk 0:00:16.1]} 34. Qa7 {[%clk 0:00:19.7]} 34... Rg8
{[%clk 0:00:11.2]} 35. f7 {[%clk 0:00:20.2]} 35... Rf8 {[%clk 0:00:10]} 36. Qxa4
{[%clk 0:00:20.8]} 36... Qe2 {[%clk 0:00:07.8]} 37. Qf4 {[%clk 0:00:03.6]} 37...
Qxd3+ {[%clk 0:00:08.2]} 38. Kb2 {[%clk 0:00:04.3]} 38... Qxh3 {[%clk
0:00:07.6]} 39. a4 {[%clk 0:00:03.6]} 39... d4 {[%clk 0:00:04.6]} 40. Rf2 {[%clk
0:00:03.3]} 40... Qc3+ {[%clk 0:00:04.4]} 41. Ka2 {[%clk 0:00:03.4]} 41... d3
{[%clk 0:00:03.8]} 42. Qe4+ {[%clk 0:00:03.2]} 42... Kh8 {[%clk 0:00:03.8]} 43.
Qe8 {[%clk 0:00:03.6]} 43... Qc5 {[%clk 0:00:03.1]} 44. Qe1 {[%clk 0:00:03.2]}
44... Qd5 {[%clk 0:00:02.2]} 45. Qd2 {[%clk 0:00:03.4]} 45... Rxf7 {[%clk
0:00:01.5]} 46. Rxf7 {[%clk 0:00:03.9]} 46... Qxf7 {[%clk 0:00:02.4]} 47. Qxd3
{[%clk 0:00:04.7]} 47... Qf2+ {[%clk 0:00:02.8]} 48. Ka3 {[%clk 0:00:05.2]}
48... Qe1 {[%clk 0:00:03.1]} 49. Qd8+ {[%clk 0:00:03.4]} 49... Kh7 {[%clk
0:00:03.7]} 50. Qd3+ {[%clk 0:00:04.1]} 50... Kh8 {[%clk 0:00:04.4]} 51. b4
{[%clk 0:00:04.8]} 51... Qc1+ {[%clk 0:00:03.6]} 52. Kb3 {[%clk 0:00:05]} 52...
h5 {[%clk 0:00:02.1]} 53. a5 {[%clk 0:00:05.7]} 53... h4 {[%clk 0:00:02.5]} 54.
a6 {[%clk 0:00:06.2]} 54... Qc7 {[%clk 0:00:01.6]} 55. Qe4 {[%clk 0:00:03.4]}
55... Qf7+ {[%clk 0:00:01.7]} 56. Ka4 {[%clk 0:00:03.1]} 56... h3 {[%clk
0:00:01.5]} 57. Qh4+ {[%clk 0:00:01.6]} 57... Kg8 {[%clk 0:00:02.1]} 58. Qxh3
{[%clk 0:00:02.2]} 58... Qa2+ {[%clk 0:00:02.4]} 59. Kb5 {[%clk 0:00:02.4]}
59... Qd5+ {[%clk 0:00:03.1]} 60. Kb6 {[%clk 0:00:02.9]} 60... Qd6+ {[%clk
0:00:03.6]} 61. Ka5 {[%clk 0:00:03.2]} 61... Qc7+ {[%clk 0:00:02.6]} 62. Kb5
{[%clk 0:00:03.2]} 62... Qe5+ {[%clk 0:00:02.1]} 63. Kc6 {[%clk 0:00:03.8]}
63... Qe4+ {[%clk 0:00:02.1]} 64. Kc5 {[%clk 0:00:04.1]} 64... Qe5+ {[%clk
0:00:02.3]} 65. Kc4 {[%clk 0:00:04.7]} 65... Qe4+ {[%clk 0:00:02.7]} 66. Kb3
{[%clk 0:00:04.8]} 66... Qb1+ {[%clk 0:00:03.3]} 67. Ka4 {[%clk 0:00:04.7]}
67... Qc2+ {[%clk 0:00:02.3]} 68. Qb3+ {[%clk 0:00:05.4]} 1-0

[Event "Early-Titled-Tuesday-Blitz-February-20-2024"]
[Site "Chess.com"]
[Date "2024.02.20"]
[Round "6"]
[White "ZuraTqebuchava"]
[Black "Actuary44"]
[Result "1/2-1/2"]
[WhiteElo "2273"]
[BlackElo "2508"]
[TimeControl "180+1"]
[EndTime "9:10:25 PST"]
[Termination "Game drawn - insufficient material"]

1. e4 {[%clk 0:03:00.3]} 1... b6 {[%clk 0:02:59.6]} 2. d3 {[%clk 0:02:57.9]}
2... Bb7 {[%clk 0:02:53.8]} 3. Nc3 {[%clk 0:02:57]} 3... e6 {[%clk 0:02:48.9]}
4. Nf3 {[%clk 0:02:52.6]} 4... Nf6 {[%clk 0:02:49.4]} 5. g3 {[%clk 0:02:51.9]}
5... d5 {[%clk 0:02:49.6]} 6. exd5 {[%clk 0:02:42.4]} 6... Nxd5 {[%clk
0:02:50.5]} 7. Bg2 {[%clk 0:02:41.2]} 7... Nxc3 {[%clk 0:02:49.1]} 8. bxc3
{[%clk 0:02:40.1]} 8... Qf6 {[%clk 0:02:45.9]} 9. Bd2 {[%clk 0:02:31.5]} 9...
Bd6 {[%clk 0:02:44]} 10. O-O {[%clk 0:02:27.1]} 10... Nd7 {[%clk 0:02:42.5]} 11.
a4 {[%clk 0:02:16.7]} 11... a5 {[%clk 0:02:39]} 12. c4 {[%clk 0:02:13.2]} 12...
h6 {[%clk 0:02:36.2]} 13. Rb1 {[%clk 0:02:03.8]} 13... O-O {[%clk 0:02:33.7]}
14. c3 {[%clk 0:01:59.1]} 14... Rad8 {[%clk 0:02:31.3]} 15. Nd4 {[%clk 0:01:58]}
15... Bxg2 {[%clk 0:02:28.6]} 16. Kxg2 {[%clk 0:01:58.9]} 16... Nc5 {[%clk
0:02:25.4]} 17. Nc6 {[%clk 0:01:34.7]} 17... Rd7 {[%clk 0:02:11.9]} 18. d4
{[%clk 0:01:34.6]} 18... Ne4 {[%clk 0:02:06]} 19. Qe2 {[%clk 0:01:28.3]} 19...
Ng5 {[%clk 0:01:56.8]} 20. Bxg5 {[%clk 0:01:27]} 20... hxg5 {[%clk 0:01:44.6]}
21. Qf3 {[%clk 0:01:10]} 21... Qg6 {[%clk 0:01:40.7]} 22. c5 {[%clk 0:01:04.8]}
22... bxc5 {[%clk 0:01:19.5]} 23. dxc5 {[%clk 0:01:05.7]} 23... g4 {[%clk
0:01:19.9]} 24. Qe3 {[%clk 0:00:58.2]} 24... Bxc5 {[%clk 0:01:05.3]} 25. Qxc5
{[%clk 0:00:55.9]} 25... Qe4+ {[%clk 0:01:05.8]} 26. Kg1 {[%clk 0:00:53.8]}
26... g6 {[%clk 0:00:50.4]} 27. Rfe1 {[%clk 0:00:48.7]} 27... Qxa4 {[%clk
0:00:46.6]} 28. Ra1 {[%clk 0:00:43.8]} 28... Qc2 {[%clk 0:00:36.2]} 29. Ne5
{[%clk 0:00:37.6]} 29... Rd5 {[%clk 0:00:29.9]} 30. Qe3 {[%clk 0:00:35.2]} 30...
Kg7 {[%clk 0:00:22.6]} 31. Nxg4 {[%clk 0:00:34.8]} 31... Rh8 {[%clk 0:00:21.6]}
32. h4 {[%clk 0:00:32.7]} 32... a4 {[%clk 0:00:19.9]} 33. Ne5 {[%clk 0:00:26.6]}
33... Qf5 {[%clk 0:00:16.6]} 34. Nf3 {[%clk 0:00:19.1]} 34... Rd3 {[%clk
0:00:15]} 35. Qe5+ {[%clk 0:00:17.5]} 35... Qxe5 {[%clk 0:00:15.5]} 36. Nxe5
{[%clk 0:00:18.3]} 36... Rxc3 {[%clk 0:00:12.3]} 37. Rxa4 {[%clk 0:00:18]} 37...
f6 {[%clk 0:00:09.1]} 38. Ng4 {[%clk 0:00:14.4]} 38... e5 {[%clk 0:00:06.2]} 39.
Ra6 {[%clk 0:00:13.2]} 39... Rf8 {[%clk 0:00:04.8]} 40. Rd1 {[%clk 0:00:12.8]}
40... Rc4 {[%clk 0:00:04.4]} 41. Rd7+ {[%clk 0:00:11.7]} 41... Rf7 {[%clk
0:00:04.9]} 42. Rxf7+ {[%clk 0:00:10.9]} 42... Kxf7 {[%clk 0:00:05.8]} 43. Ne3
{[%clk 0:00:11.5]} 43... Rc1+ {[%clk 0:00:04.9]} 44. Kg2 {[%clk 0:00:11.5]}
44... f5 {[%clk 0:00:05.1]} 45. Ra7 {[%clk 0:00:10.7]} 45... Ke6 {[%clk
0:00:03.9]} 46. Ra6+ {[%clk 0:00:09.8]} 46... c6 {[%clk 0:00:04.4]} 47. Ra8
{[%clk 0:00:08.9]} 47... f4 {[%clk 0:00:04.8]} 48. gxf4 {[%clk 0:00:09]} 48...
exf4 {[%clk 0:00:05.7]} 49. Ng4 {[%clk 0:00:09.7]} 49... Kf5 {[%clk 0:00:06.2]}
50. Nh6+ {[%clk 0:00:09.4]} 50... Ke4 {[%clk 0:00:05.2]} 51. Re8+ {[%clk
0:00:08.3]} 51... Kd4 {[%clk 0:00:05.6]} 52. Kf3 {[%clk 0:00:07.3]} 52... Rc2
{[%clk 0:00:04.9]} 53. Ng4 {[%clk 0:00:06.8]} 53... c5 {[%clk 0:00:04.9]} 54.
Kxf4 {[%clk 0:00:06.8]} 54... c4 {[%clk 0:00:04.7]} 55. Rd8+ {[%clk 0:00:07.2]}
55... Kc5 {[%clk 0:00:04.5]} 56. Rg8 {[%clk 0:00:07.2]} 56... c3 {[%clk
0:00:03.4]} 57. Rxg6 {[%clk 0:00:07]} 57... Rc1 {[%clk 0:00:03.9]} 58. Ne3
{[%clk 0:00:07.3]} 58... Rh1 {[%clk 0:00:03]} 59. Rh6 {[%clk 0:00:05.7]} 59...
Kd4 {[%clk 0:00:03.3]} 60. Rh8 {[%clk 0:00:05.2]} 60... Kd3 {[%clk 0:00:03.7]}
61. h5 {[%clk 0:00:05]} 61... Ke2 {[%clk 0:00:04]} 62. h6 {[%clk 0:00:04.8]}
62... Kxf2 {[%clk 0:00:04.5]} 63. h7 {[%clk 0:00:04.1]} 63... Rh4+ {[%clk
0:00:04.6]} 64. Kg5 {[%clk 0:00:04]} 64... Rh1 {[%clk 0:00:04.2]} 65. Rf8+
{[%clk 0:00:04.1]} 65... Kxe3 {[%clk 0:00:04.4]} 66. h8=Q {[%clk 0:00:05]} 66...
Rxh8 {[%clk 0:00:04.1]} 67. Rxh8 {[%clk 0:00:05.9]} 67... Kd2 {[%clk 0:00:04.8]}
68. Rd8+ {[%clk 0:00:06.2]} 68... Ke2 {[%clk 0:00:05.2]} 69. Kf4 {[%clk
0:00:06.4]} 69... c2 {[%clk 0:00:05.4]} 70. Rc8 {[%clk 0:00:06.4]} 70... Kd2
{[%clk 0:00:05.9]} 71. Ke4 {[%clk 0:00:06.8]} 71... c1=Q {[%clk 0:00:05.7]} 72.
Rxc1 {[%clk 0:00:07.1]} 72... Kxc1 {[%clk 0:00:06.6]} 1/2-1/2

[Event "Early-Titled-Tuesday-Blitz-February-20-2024"]
[Site "Chess.com"]
[Date "2024.02.20"]
[Round "6"]
[White "janhelmer03"]
[Black "Matols"]
[Result "1-0"]
[WhiteElo "2206"]
[BlackElo "2348"]
[TimeControl "180+1"]
[EndTime "9:10:29 PST"]
[Termination "janhelmer03 won on time"]

1. d4 {[%clk 0:02:56]} 1... d5 {[%clk 0:02:59.2]} 2. c4 {[%clk 0:02:56.4]} 2...
e6 {[%clk 0:02:59.8]} 3. Nf3 {[%clk 0:02:56.8]} 3... Nf6 {[%clk 0:03:00.1]} 4.
g3 {[%clk 0:02:57.5]} 4... Bb4+ {[%clk 0:03:00.4]} 5. Bd2 {[%clk 0:02:57.2]}
5... Be7 {[%clk 0:03:01]} 6. Bg2 {[%clk 0:02:57.5]} 6... O-O {[%clk 0:03:01.6]}
7. O-O {[%clk 0:02:58]} 7... Nbd7 {[%clk 0:03:02.1]} 8. Bc3 {[%clk 0:02:58.5]}
8... c6 {[%clk 0:03:00.8]} 9. Nbd2 {[%clk 0:02:58]} 9... b6 {[%clk 0:02:59.5]}
10. Qc2 {[%clk 0:02:56.5]} 10... Bb7 {[%clk 0:02:55.6]} 11. e4 {[%clk
0:02:55.7]} 11... dxc4 {[%clk 0:02:49.4]} 12. Nxc4 {[%clk 0:02:55]} 12... c5
{[%clk 0:02:47.4]} 13. Rfe1 {[%clk 0:02:26.9]} 13... cxd4 {[%clk 0:02:44]} 14.
Nxd4 {[%clk 0:02:27.8]} 14... Rc8 {[%clk 0:02:42.4]} 15. Nd2 {[%clk 0:02:01.7]}
15... Ne5 {[%clk 0:02:34.5]} 16. N2b3 {[%clk 0:01:48.2]} 16... Bb4 {[%clk
0:02:24.2]} 17. Bxb4 {[%clk 0:01:01.6]} 17... Rxc2 {[%clk 0:02:21.2]} 18. Nxc2
{[%clk 0:01:02.5]} 18... Re8 {[%clk 0:02:08.7]} 19. Rad1 {[%clk 0:01:01.5]}
19... Qa8 {[%clk 0:02:07.4]} 20. Bc3 {[%clk 0:00:54.1]} 20... Nc4 {[%clk
0:02:01.4]} 21. f3 {[%clk 0:00:50.3]} 21... Rd8 {[%clk 0:01:52.9]} 22. Rc1
{[%clk 0:00:42]} 22... a5 {[%clk 0:01:43.7]} 23. Bf1 {[%clk 0:00:42]} 23... Ba6
{[%clk 0:01:33.7]} 24. Nbd4 {[%clk 0:00:30]} 24... e5 {[%clk 0:01:24.5]} 25. Nf5
{[%clk 0:00:28.6]} 25... Nd7 {[%clk 0:01:20.7]} 26. Rcd1 {[%clk 0:00:19]} 26...
g6 {[%clk 0:01:00.6]} 27. Ne7+ {[%clk 0:00:16]} 27... Kf8 {[%clk 0:01:00.3]} 28.
Nd5 {[%clk 0:00:16.6]} 28... a4 {[%clk 0:00:43.5]} 29. b3 {[%clk 0:00:15.5]}
29... axb3 {[%clk 0:00:43]} 30. axb3 {[%clk 0:00:16.4]} 30... Nd6 {[%clk
0:00:35.4]} 31. Bb4 {[%clk 0:00:15]} 31... Nc5 {[%clk 0:00:33.1]} 32. Nxb6
{[%clk 0:00:13.4]} 32... Qc6 {[%clk 0:00:30.1]} 33. Nd5 {[%clk 0:00:05.3]} 33...
Bxf1 {[%clk 0:00:28.3]} 34. Rxf1 {[%clk 0:00:05.9]} 34... Nxb3 {[%clk
0:00:27.6]} 35. Nce3 {[%clk 0:00:04.5]} 35... Kg7 {[%clk 0:00:26.1]} 36. Kg2
{[%clk 0:00:04.7]} 36... Nb5 {[%clk 0:00:23.5]} 37. Rc1 {[%clk 0:00:04.9]} 37...
Qe6 {[%clk 0:00:21.4]} 38. Rcd1 {[%clk 0:00:04.3]} 38... N5d4 {[%clk 0:00:21.3]}
39. Bc3 {[%clk 0:00:03.9]} 39... Rc8 {[%clk 0:00:20.7]} 40. Bb2 {[%clk
0:00:03.6]} 40... Qa6 {[%clk 0:00:19.1]} 41. f4 {[%clk 0:00:01.5]} 41... Qe2+
{[%clk 0:00:18.2]} 42. Rf2 {[%clk 0:00:02.1]} 42... Qa6 {[%clk 0:00:16]} 43.
fxe5 {[%clk 0:00:02.5]} 43... Re8 {[%clk 0:00:14.8]} 44. Rxd4 {[%clk 0:00:02.5]}
44... Nxd4 {[%clk 0:00:14.4]} 45. Bxd4 {[%clk 0:00:03.4]} 45... Re6 {[%clk
0:00:12.5]} 46. Nf4 {[%clk 0:00:03]} 46... Qa3 {[%clk 0:00:10.9]} 47. Nxe6+
{[%clk 0:00:03.4]} 47... fxe6 {[%clk 0:00:11.4]} 48. Rd2 {[%clk 0:00:02.3]}
48... Qa5 {[%clk 0:00:10.8]} 49. Nf1 {[%clk 0:00:03]} 49... Qb4 {[%clk
0:00:10.3]} 50. Be3 {[%clk 0:00:03.5]} 50... Qxe4+ {[%clk 0:00:10.4]} 51. Kf2
{[%clk 0:00:04.3]} 51... Qf5+ {[%clk 0:00:10.3]} 52. Bf4 {[%clk 0:00:04.7]}
52... Qe4 {[%clk 0:00:09.8]} 53. Ne3 {[%clk 0:00:05.6]} 53... Qb4 {[%clk
0:00:07.9]} 54. Rd7+ {[%clk 0:00:05.8]} 54... Kf8 {[%clk 0:00:07.8]} 55. Bh6+
{[%clk 0:00:05.8]} 55... Ke8 {[%clk 0:00:07.5]} 56. Rxh7 {[%clk 0:00:06.4]}
56... Qb2+ {[%clk 0:00:07.3]} 57. Kf3 {[%clk 0:00:06.2]} 57... Qxe5 {[%clk
0:00:07.8]} 58. Bf4 {[%clk 0:00:05.5]} 58... Qc3 {[%clk 0:00:06.6]} 59. Rc7
{[%clk 0:00:04.9]} 59... Qb3 {[%clk 0:00:05.5]} 60. Rc8+ {[%clk 0:00:04]} 60...
Kd7 {[%clk 0:00:05]} 61. Rc7+ {[%clk 0:00:04.9]} 61... Kd8 {[%clk 0:00:04.9]}
62. Rc4 {[%clk 0:00:05.5]} 62... Qb7+ {[%clk 0:00:04.3]} 63. Re4 {[%clk
0:00:04.7]} 63... Kd7 {[%clk 0:00:03.7]} 64. h4 {[%clk 0:00:04.9]} 64... Ke7
{[%clk 0:00:03.3]} 65. Bg5+ {[%clk 0:00:03.2]} 65... Kf7 {[%clk 0:00:03.2]} 66.
Ng4 {[%clk 0:00:02.7]} 66... Qd5 {[%clk 0:00:02.7]} 67. Ne5+ {[%clk 0:00:01.6]}
67... Ke8 {[%clk 0:00:02.1]} 68. Be3 {[%clk 0:00:02.4]} 68... Qb7 {[%clk
0:00:01.5]} 69. Kf4 {[%clk 0:00:02.7]} 69... Qd5 {[%clk 0:00:01.2]} 70. g4
{[%clk 0:00:03.2]} 1-0